bitfinex-derivatives/quotes_BTCF0:USTF0_20241128
["timestamp","ask_amount","ask_price","bid_price","bid_amount"]
[1732813411420,0.42249123,95263.0,95259.0,0.25121071]
[1732813411615,0.05247,95259.0,95258.0,0.05247]
[1732813411808,0.41327,95259.0,95258.0,0.05247]
[1732813412611,0.3608,95259.0,95258.0,0.25124918]
[1732813412912,0.052472,95255.0,95254.0,0.25124918]
[1732813413112,0.052472,95255.0,95251.0,0.05254773]
[1732813413113,0.3608,95259.0,95253.0,0.25124918]
[1732813413308,0.052472,95254.0,95253.0,0.25124918]
[1732813413812,0.3608,95259.0,95251.0,7.373e-05]
[1732813414011,0.413273,95252.0,95251.0,0.25132291]
[1732813414325,0.413273,95252.0,95251.0,7.373e-05]
[1732813415518,0.413273,95252.0,95251.0,0.00607373]
[1732813415715,0.413273,95252.0,95251.0,0.00907373]
[1732813418520,0.42856258,95252.0,95251.0,0.00907373]
[1732813418723,0.59324258,95252.0,95251.0,0.00907373]
[1732813424118,0.42856258,95252.0,95251.0,0.06154773]
[1732813424312,0.3608,95252.0,95251.0,0.06154773]
[1732813424513,0.3608,95252.0,95251.0,0.31279691]
[1732813424729,0.3608,95252.0,95251.0,0.06154773]
[1732813424923,0.3608,95252.0,95251.0,0.0779563]
[1732813425223,0.3608,95252.0,95251.0,0.06482944]
[1732813425528,0.3608,95261.0,95260.0,0.052469]
[1732813425723,0.3608,95261.0,95260.0,0.0557504]
[1732813426520,0.3608,95271.0,95262.0,0.052468]
[1732813426829,0.3608,95283.0,95282.0,0.052457]
[1732813427625,0.36090168,95283.0,95282.0,0.052457]
[1732813428131,0.36590168,95283.0,95282.0,0.053457]
[1732813429135,0.41835768,95283.0,95282.0,0.053457]
[1732813429824,0.42335768,95283.0,95282.0,0.053457]
[1732813432031,0.37090168,95283.0,95282.0,0.053457]
[1732813432232,0.42335768,95283.0,95282.0,0.053457]
[1732813432833,0.42335768,95283.0,95282.0,0.001]
[1732813434429,0.42335768,95283.0,95282.0,0.053457]
[1732813434622,0.42335768,95283.0,95282.0,0.001]
[1732813434824,0.052465,95268.0,95265.0,0.18815835]
[1732813435019,0.68574168,95283.0,95250.0,0.33481437]
[1732813435020,0.3608,95266.0,95262.0,0.052468]
[1732813435220,0.052468,95263.0,95262.0,0.052468]
[1732813435735,0.052468,95263.0,95251.0,0.18823208]
[1732813435736,0.3608,95266.0,95256.0,0.01508513]
[1732813436035,0.413273,95257.0,95256.0,0.052471]
[1732813436233,0.413273,95257.0,95251.0,7.373e-05]
[1732813436234,0.052473,95252.0,95251.0,7.373e-05]
[1732813436437,0.413273,95252.0,95251.0,7.373e-05]
[1732813438635,0.413273,95252.0,95251.0,0.00907373]
[1732813439636,0.413273,95252.0,95251.0,0.06154773]
[1732813440527,0.413273,95252.0,95251.0,0.00907373]
[1732813441032,0.577633,95252.0,95251.0,0.00907373]
[1732813444241,0.577633,95252.0,95251.0,0.06154773]
[1732813444728,0.413273,95252.0,95251.0,0.06154773]
[1732813445828,0.413273,95252.0,95251.0,0.00907373]
[1732813448939,0.577673,95252.0,95251.0,0.00907373]
[1732813449534,0.577673,95252.0,95242.0,0.052478]
[1732813449535,0.052478,95243.0,95242.0,0.052478]
[1732813449735,0.413278,95243.0,95242.0,0.052478]
[1732813450742,0.3608,95243.0,95242.0,0.067478]
[1732813452029,0.3608,95252.0,95242.0,0.015]
[1732813452232,0.3608,95252.0,95251.0,0.052474]
[1732813453640,0.3608,95252.0,95251.0,0.057474]
[1732813454230,0.20327231,95252.0,95251.0,0.057474]
[1732813454436,0.20327231,95252.0,95251.0,0.07548389]
[1732813455042,0.0328,95256.0,95255.0,0.052472]
[1732813455244,0.085271,95256.0,95255.0,0.052472]
[1732813455543,0.0328,95256.0,95255.0,0.052472]
[1732813456938,0.0328,95256.0,95255.0,0.055472]
[1732813457242,0.0658,95267.0,95266.0,0.052466]
[1732813458143,0.118265,95267.0,95266.0,0.052466]
[1732813458342,0.052465,95267.0,95266.0,0.052466]
[1732813458539,0.055465,95267.0,95266.0,0.052466]
[1732813459142,0.003,95267.0,95266.0,0.052466]
[1732813459548,0.003,95267.0,95266.0,0.05574722]
[1732813460144,0.00010168,95283.0,95280.0,0.052458]
[1732813461443,0.3658,95281.0,95280.0,0.052458]
[1732813461645,0.3748,95281.0,95280.0,0.053458]
[1732813473151,0.427258,95281.0,95280.0,0.001]
[1732813473351,0.427258,95281.0,95266.0,0.07346225]
[1732813473352,0.3748,95281.0,95266.0,0.07346225]
[1732813473553,0.05246,95280.0,95279.0,0.052458]
[1732813474655,0.06146,95280.0,95279.0,0.053458]
[1732813476673,0.06546,95280.0,95279.0,0.053458]
[1732813477072,0.06546,95280.0,95275.0,0.052461]
[1732813477373,0.06546,95280.0,95270.0,0.052463]
[1732813477374,0.052464,95271.0,95270.0,0.052463]
[1732813477565,0.413264,95271.0,95270.0,0.052463]
[1732813477760,0.3608,95271.0,95270.0,0.052463]
[1732813479264,0.413263,95271.0,95270.0,0.052463]
[1732813480469,0.417263,95271.0,95270.0,0.052463]
[1732813481161,0.419263,95271.0,95270.0,0.052463]
[1732813484272,0.3668,95271.0,95270.0,0.052463]
[1732813485567,0.3668,95271.0,95270.0,0.06709445]
[1732813487284,0.3668,95271.0,95270.0,0.38057609]
[1732813487483,0.3668,95271.0,95270.0,0.06709445]
[1732813488577,0.3668,95271.0,95270.0,0.052463]
[1732813488789,0.419263,95271.0,95270.0,0.052463]
[1732813489174,0.3668,95271.0,95270.0,0.052463]
[1732813489879,0.3668,95271.0,95270.0,0.36594464]
[1732813490079,0.3668,95271.0,95270.0,0.052463]
[1732813490689,0.3668,95271.0,95270.0,0.36594464]
[1732813490881,0.3668,95271.0,95270.0,0.81433058]
[1732813491782,0.006,95271.0,95270.0,0.50084894]
[1732813491991,0.006,95271.0,95270.0,0.052463]
[1732813498891,0.006,95271.0,95270.0,0.241036]
[1732813499877,0.006,95271.0,95270.0,0.052463]
[1732813500083,0.413258,95282.0,95281.0,0.052458]
[1732813501491,0.418258,95282.0,95281.0,0.052458]
[1732813501793,0.427258,95282.0,95281.0,0.053458]
[1732813501983,0.427258,95282.0,95281.0,0.001]
[1732813502286,0.427258,95282.0,95281.0,0.053458]
[1732813502679,0.427258,95282.0,95281.0,0.001]
[1732813502882,0.742098,95282.0,95281.0,0.001]
[1732813503086,0.427258,95282.0,95281.0,0.001]
[1732813504089,0.427258,95282.0,95281.0,0.053458]
[1732813505895,0.427258,95282.0,95281.0,0.001]
[1732813508500,0.742098,95282.0,95281.0,0.001]
[1732813512191,0.742098,95282.0,95255.0,0.31448956]
[1732813512192,0.052465,95267.0,95263.0,0.18875319]
[1732813512389,0.7216,95264.0,95261.0,0.18875319]
[1732813512589,0.7216,95264.0,95260.0,0.24122219]
[1732813512886,0.052469,95261.0,95260.0,0.24122219]
[1732813513086,0.052469,95261.0,95260.0,0.052469]
[1732813514097,0.052469,95261.0,95260.0,0.24216055]
[1732813514286,0.052469,95261.0,95260.0,0.054469]
[1732813515191,0.72216001,95264.0,95260.0,0.002]
[1732813515397,0.774067,95264.0,95263.0,0.052467]
[1732813516195,0.78913171,95264.0,95263.0,0.052467]
[1732813516390,0.7216,95264.0,95263.0,0.052467]
[1732813516586,0.3608,95264.0,95263.0,0.052467]
[1732813518794,0.3608,95264.0,95258.0,0.052469]
[1732813518795,0.052471,95259.0,95258.0,0.052469]
[1732813520092,0.052471,95259.0,95258.0,0.053469]
[1732813520293,0.052471,95259.0,95258.0,0.055469]
[1732813521795,0.052471,95259.0,95258.0,0.003]
[1732813521993,0.052471,95259.0,95258.0,0.05547]
[1732813523098,0.052471,95259.0,95258.0,0.003]
[1732813523803,0.052471,95259.0,95258.0,0.05547]
[1732813524895,0.052471,95259.0,95258.0,0.003]
[1732813525796,0.05247,95258.0,95254.0,0.18869155]
[1732813525989,0.052478,95244.0,95243.0,0.18869155]
[1732813526195,0.5244,95244.0,95241.0,0.18849389]
[1732813526397,0.5244,95244.0,95241.0,0.18845201]
[1732813526398,0.052479,95242.0,95241.0,0.18845201]
[1732813526603,0.052479,95242.0,95235.0,0.30407465]
[1732813526604,0.052481,95238.0,95237.0,0.18855293]
[1732813526897,0.052481,95238.0,95237.0,0.00010092]
[1732813527905,0.053481,95238.0,95237.0,0.00710092]
[1732813528198,0.054481,95238.0,95237.0,0.01610092]
[1732813529204,0.054481,95238.0,95237.0,0.06858292]
[1732813530303,0.002,95238.0,95237.0,0.06858292]
[1732813530491,0.3608,95241.0,95237.0,0.38358292]
[1732813530799,0.3608,95257.0,95256.0,0.052471]
[1732813532192,0.3608,95257.0,95256.0,0.0675706]
[1732813533300,0.3608,95257.0,95256.0,0.0705706]
[1732813533500,0.3608,95257.0,95256.0,0.0725706]
[1732813537308,0.3608,95257.0,95256.0,0.26102261]
[1732813538198,0.413271,95257.0,95256.0,0.0725706]
[1732813538711,0.3608,95257.0,95256.0,0.0725706]
[1732813539310,0.413271,95257.0,95256.0,0.057471]
[1732813539603,0.3608,95257.0,95256.0,0.057471]
[1732813540507,0.3608,95257.0,95256.0,0.24596175]
[1732813540808,0.3608,95257.0,95256.0,0.057471]
[1732813542501,0.728191,95257.0,95256.0,0.005]
[1732813543108,0.413271,95257.0,95256.0,0.005]
[1732813543304,0.413271,95257.0,95256.0,0.057471]
[1732813543808,0.42797015,95257.0,95256.0,0.005]
[1732813544999,0.37549915,95257.0,95243.0,0.052478]
[1732813545204,0.413278,95244.0,95243.0,0.052478]
[1732813545499,0.413278,95244.0,95224.0,0.18852843]
[1732813545500,0.052481,95238.0,95224.0,0.18852843]
[1732813545702,0.052481,95238.0,95223.0,0.18852843]
[1732813545909,0.052481,95238.0,95222.0,0.18852843]
[1732813546310,0.052481,95238.0,95229.0,0.052486]
[1732813546708,0.052481,95238.0,95230.0,0.052485]
[1732813546913,0.053481,95238.0,95237.0,0.00710092]
[1732813547214,0.054481,95238.0,95237.0,0.01610092]
[1732813547806,0.06901258,95238.0,95237.0,0.01610092]
[1732813549212,0.38401258,95238.0,95237.0,0.01610092]
[1732813550613,0.38401258,95238.0,95203.0,0.18852843]
[1732813550908,0.3608,95214.0,95204.0,0.0316]
[1732813551110,0.413295,95214.0,95210.0,0.052496]
[1732813551311,0.0315,95213.0,95210.0,0.052496]
[1732813551514,0.3608,95212.0,95206.0,0.052499]
[1732813551713,7.943e-05,95211.0,95203.0,9.257e-05]
[1732813551914,0.3608,95204.0,95203.0,9.257e-05]
[1732813552115,0.3608,95204.0,95203.0,0.05259257]
[1732813553714,7.943e-05,95211.0,95210.0,0.052497]
[1732813554711,7.943e-05,95211.0,95210.0,0.367577]
[1732813555214,7.943e-05,95211.0,95210.0,0.38070893]
[1732813555424,0.3608,95224.0,95223.0,0.052489]
[1732813556019,0.413289,95224.0,95223.0,0.052489]
[1732813556205,0.413289,95224.0,95219.0,0.052491]
[1732813556206,0.052492,95220.0,95219.0,0.052491]
[1732813556411,0.0525674,95220.0,95219.0,0.052491]
[1732813557411,0.0535674,95220.0,95219.0,0.057491]
[1732813557613,0.0535674,95220.0,95219.0,0.060491]
[1732813558012,0.0525674,95220.0,95219.0,0.055491]
[1732813558206,0.0535674,95220.0,95219.0,0.060491]
[1732813558415,0.0010754,95220.0,95219.0,0.060491]
[1732813563518,0.0010754,95220.0,95219.0,0.08675356]
[1732813563715,0.052486,95229.0,95227.0,0.052487]
[1732813563919,0.052486,95229.0,95219.0,0.03951509]
[1732813563920,0.052486,95229.0,95228.0,0.052486]
[1732813564621,0.3608,95234.0,95220.0,0.18802283]
[1732813564622,0.3608,95234.0,95233.0,0.052484]
[1732813565009,0.36093427,95234.0,95233.0,0.052484]
[1732813565210,0.36093427,95234.0,95227.0,0.001]
[1732813565521,0.36093427,95234.0,95230.0,0.052485]
[1732813565912,0.052485,95232.0,95231.0,0.052485]
[1732813567619,0.36293427,95234.0,95228.0,0.001]
[1732813567620,0.36093427,95234.0,95228.0,0.001]
[1732813567817,0.052486,95229.0,95228.0,0.001]
[1732813568023,0.052486,95229.0,95227.0,0.002]
[1732813568024,0.052487,95228.0,95227.0,0.002]
[1732813568321,0.413287,95228.0,95227.0,0.052487]
[1732813568521,0.3608,95228.0,95227.0,0.052487]
[1732813570734,0.3608,95228.0,95227.0,0.053487]
[1732813571131,0.3608,95228.0,95227.0,0.054487]
[1732813572632,0.3608,95228.0,95227.0,0.369527]
[1732813572831,0.3608,95228.0,95227.0,0.60678733]
[1732813573032,0.3608,95228.0,95227.0,0.61006983]
[1732813573237,0.3608,95228.0,95227.0,0.3911915]
[1732813574835,0.3608,95228.0,95227.0,0.4520915]
[1732813575031,0.3608,95228.0,95227.0,0.47309954]
[1732813575235,0.3608,95228.0,95227.0,0.91345634]
[1732813575538,0.3608,95228.0,95227.0,0.92330386]
[1732813575926,0.3608,95228.0,95227.0,0.88063132]
[1732813576139,0.3608,95228.0,95227.0,0.8707838]
[1732813576932,0.3608,95228.0,95227.0,0.88391382]
[1732813577236,0.3608,95228.0,95227.0,0.92330386]
[1732813577540,0.3608,95228.0,95227.0,0.48239662]
[1732813578438,0.3608,95228.0,95227.0,0.16790706]
[1732813578641,0.3608,95228.0,95227.0,0.15805955]
[1732813579134,0.3608,95228.0,95227.0,0.32069955]
[1732813579537,0.3608,95228.0,95227.0,0.25979955]
[1732813579741,0.3608,95228.0,95227.0,0.054487]
[1732813581229,0.413287,95228.0,95227.0,0.054487]
[1732813582139,0.3608,95228.0,95227.0,0.054487]
[1732813589447,0.3608,95228.0,95227.0,0.49538416]
[1732813591747,0.413287,95228.0,95227.0,0.002]
[1732813592349,0.413287,95228.0,95227.0,0.054487]
[1732813592744,0.42832023,95228.0,95227.0,0.002]
[1732813592950,0.31504,95227.0,95217.0,0.36719972]
[1732813593145,0.3608,95218.0,95217.0,0.052492]
[1732813593857,0.413292,95218.0,95217.0,0.052492]
[1732813594047,0.3608,95218.0,95217.0,0.052492]
[1732813594249,0.3608,95218.0,95217.0,0.055492]
[1732813594451,0.3618,95218.0,95217.0,0.061492]
[1732813595054,0.001,95218.0,95217.0,0.061492]
[1732813595359,0.001,95218.0,95217.0,0.49377608]
[1732813595655,0.3608,95228.0,95227.0,0.052487]
[1732813596456,0.3608,95228.0,95219.0,0.3146095]
[1732813596653,0.052489,95224.0,95223.0,0.052488]
[1732813597151,0.052489,95224.0,95223.0,0.24126186]
[1732813597351,0.052489,95224.0,95223.0,0.052488]
[1732813598148,0.052489,95224.0,95223.0,0.003]
[1732813598345,0.052489,95224.0,95223.0,0.19176679]
[1732813598548,0.052489,95224.0,95223.0,0.003]
[1732813599847,0.052489,95224.0,95223.0,0.005]
[1732813600457,0.3608,95225.0,95223.0,0.005]
[1732813600654,0.3608,95225.0,95224.0,0.24125579]
[1732813600959,0.3608,95225.0,95224.0,0.052489]
[1732813601258,0.3608,95225.0,95224.0,0.24120087]
[1732813601459,0.3608,95225.0,95224.0,0.052489]
[1732813602256,0.3608,95225.0,95224.0,0.055489]
[1732813603449,0.3608,95225.0,95224.0,0.056489]
[1732813606862,0.3608,95225.0,95224.0,0.24518821]
[1732813607076,0.3608,95225.0,95224.0,0.27670059]
[1732813607265,0.3608,95225.0,95224.0,0.08800138]
[1732813607471,0.00013427,95234.0,95233.0,0.052484]
[1732813609257,0.00113427,95234.0,95233.0,0.052484]
[1732813610063,0.00313427,95234.0,95233.0,0.052484]
[1732813611672,0.00313427,95234.0,95233.0,0.06732081]
[1732813619468,0.3608,95240.0,95239.0,0.052481]
[1732813619669,0.052466,95267.0,95239.0,0.052481]
[1732813619670,0.16212,95258.0,95239.0,0.052481]
[1732813619977,0.052471,95256.0,95248.0,0.052476]
[1732813620170,0.0150475,95250.0,95248.0,0.052476]
[1732813620372,0.0150475,95250.0,95240.0,0.21884166]
[1732813620566,0.41328,95241.0,95240.0,0.05248]
[1732813621065,0.052483,95234.0,95233.0,0.052484]
[1732813622865,0.052483,95234.0,95231.0,0.01514835]
[1732813622866,0.05248,95240.0,95231.0,0.01514835]
[1732813623067,0.3608,95232.0,95231.0,0.052485]
[1732813625076,0.413284,95232.0,95231.0,0.052485]
[1732813629769,0.413284,95232.0,95226.0,0.10059992]
[1732813629770,0.052487,95227.0,95226.0,0.10059992]
[1732813630178,0.413285,95232.0,95230.0,0.052486]
[1732813630376,0.052485,95231.0,95230.0,0.052486]
[1732813636880,0.052485,95231.0,95229.0,0.18894339]
[1732813636881,0.3608,95232.0,95231.0,0.052485]
[1732813637587,0.3608,95232.0,95231.0,0.24142839]
[1732813637779,0.3608,95232.0,95231.0,0.052485]
[1732813642482,0.3608,95232.0,95231.0,0.49558468]
[1732813642891,0.413284,95232.0,95231.0,0.49558468]
[1732813643495,0.413284,95232.0,95226.0,0.0331]
[1732813643496,0.3608,95232.0,95230.0,0.31488194]
[1732813643785,0.3608,95232.0,95213.0,0.4388743]
[1732813643786,0.3608,95232.0,95227.0,0.31490192]
[1732813644094,0.3608,95232.0,95219.0,0.37617797]
[1732813644095,0.052489,95223.0,95222.0,0.31491213]
[1732813644487,0.16156,95224.0,95223.0,0.052489]
[1732813644991,0.052488,95225.0,95224.0,0.052489]
[1732813645590,0.3608,95228.0,95227.0,0.052487]
[1732813645591,0.413288,95228.0,95227.0,0.052487]
[1732813646186,0.413288,95228.0,95227.0,0.24132552]
[1732813646586,0.413288,95228.0,95227.0,0.24132484]
[1732813647185,0.413288,95228.0,95227.0,0.24232484]
[1732813647395,0.413288,95228.0,95227.0,0.24432484]
[1732813647789,0.3608,95228.0,95227.0,0.24432484]
[1732813648198,0.3608,95228.0,95227.0,0.055487]
[1732813649988,0.413287,95228.0,95227.0,0.055487]
[1732813650991,0.052487,95228.0,95227.0,0.055487]
[1732813651200,0.413287,95228.0,95227.0,0.055487]
[1732813651391,0.3608,95228.0,95227.0,0.055487]
[1732813652184,0.413287,95228.0,95227.0,0.055487]
[1732813652589,0.3608,95228.0,95227.0,0.055487]
[1732813654292,0.413287,95228.0,95227.0,0.055487]
[1732813655395,0.3608,95228.0,95227.0,0.055487]
[1732813655902,0.413287,95228.0,95227.0,0.055487]
[1732813658301,0.413287,95228.0,95227.0,0.003]
[1732813658700,0.728327,95228.0,95227.0,0.003]
[1732813659396,0.728327,95228.0,95203.0,9.257e-05]
[1732813659397,1.04309524,95228.0,95203.0,9.257e-05]
[1732813659608,0.4133,95204.0,95203.0,0.05259257]
[1732813660797,0.3608,95204.0,95203.0,0.05259257]
[1732813660996,0.3608,95204.0,95203.0,0.06159257]
[1732813660997,0.3618,95204.0,95203.0,0.06159257]
[1732813661198,0.4143,95204.0,95203.0,0.06159257]
[1732813662202,0.4143,95204.0,95203.0,0.06859257]
[1732813662506,0.3618,95204.0,95203.0,0.06859257]
[1732813663099,0.3628,95204.0,95203.0,0.06859257]
[1732813665505,0.4153,95204.0,95203.0,0.06859257]
[1732813665700,0.4153,95204.0,95203.0,0.32034197]
[1732813666408,0.4153,95204.0,95203.0,0.06859257]
[1732813668104,0.4153,95204.0,95203.0,0.20460733]
[1732813668298,0.4153,95204.0,95203.0,0.01609257]
[1732813670411,0.3628,95204.0,95203.0,0.06859257]
[1732813671901,0.3628,95204.0,95203.0,0.33512865]
[1732813672104,0.3628,95204.0,95203.0,0.08337925]
[1732813672408,0.3628,95204.0,95203.0,0.33469566]
[1732813672998,0.20519721,95204.0,95203.0,0.08337925]
[1732813674910,0.20519721,95204.0,95203.0,0.11377925]
[1732813676001,0.3608,95222.0,95203.0,0.11584602]
[1732813676206,0.3608,95222.0,95221.0,0.052491]
[1732813677101,0.052491,95221.0,95219.0,0.18850396]
[1732813677505,0.3608,95222.0,95215.0,0.18850396]
[1732813677506,0.052491,95220.0,95215.0,0.18850396]
[1732813677705,0.052493,95216.0,95214.0,0.18850396]
[1732813678111,0.052493,95216.0,95213.0,0.052495]
[1732813678112,0.052493,95216.0,95213.0,0.24099896]
[1732813678302,0.052494,95215.0,95213.0,0.24099896]
[1732813678502,0.3628,95222.0,95212.0,0.18850396]
[1732813678503,0.3608,95214.0,95212.0,0.18850396]
[1732813678703,0.052499,95206.0,95204.0,0.18850396]
[1732813678913,0.3608,95205.0,95203.0,0.19659653]
[1732813679202,0.3608,95205.0,95203.0,0.00809257]
[1732813679409,0.3608,95205.0,95203.0,9.257e-05]
[1732813679410,0.4133,95205.0,95203.0,9.257e-05]
[1732813680607,0.36762,95204.0,95203.0,9.257e-05]
[1732813680811,0.052506,95193.0,95192.0,0.18850396]
[1732813681008,0.052506,95193.0,95188.0,0.18850396]
[1732813681009,0.52128,95193.0,95188.0,0.18850396]
[1732813681313,0.52128,95193.0,95187.0,0.18850396]
[1732813681521,0.52128,95193.0,95192.0,0.052507]
[1732813681809,0.3608,95193.0,95192.0,0.052507]
[1732813682414,0.3618,95193.0,95192.0,0.052507]
[1732813682618,0.3628,95193.0,95192.0,0.057507]
[1732813682822,0.3618,95193.0,95192.0,0.057507]
[1732813683009,0.002,95193.0,95192.0,0.25401096]
[1732813683410,0.002,95193.0,95192.0,0.065507]
[1732813683914,0.002,95193.0,95192.0,0.25401096]
[1732813684311,0.002,95193.0,95192.0,0.065507]
[1732813684516,0.002,95193.0,95192.0,0.25402756]
[1732813684714,0.002,95193.0,95192.0,0.065507]
[1732813685020,0.002,95193.0,95192.0,0.25402763]
[1732813685219,0.054506,95193.0,95192.0,0.065507]
[1732813685420,0.002,95193.0,95192.0,0.065507]
[1732813685607,0.054506,95193.0,95192.0,0.013]
[1732813686407,0.002,95193.0,95192.0,0.013]
[1732813686613,0.002,95193.0,95192.0,0.065507]
[1732813687016,0.054506,95193.0,95192.0,0.065507]
[1732813688116,0.054506,95193.0,95192.0,0.013]
[1732813688911,0.05462504,95193.0,95192.0,0.013]
[1732813689820,0.05462504,95193.0,95183.0,0.0001205]
[1732813689821,0.052511,95184.0,95183.0,0.0001205]
[1732813690024,0.573791,95184.0,95183.0,0.0001205]
[1732813690223,0.888991,95184.0,95183.0,0.0001205]
[1732813690616,0.888991,95184.0,95166.0,0.25133861]
[1732813690617,0.05252,95167.0,95166.0,0.25133861]
[1732813690914,0.41332,95167.0,95166.0,0.18855422]
[1732813691114,0.41332,95167.0,95163.0,0.19058794]
[1732813691317,0.41332,95167.0,95164.0,0.18855422]
[1732813691517,0.3608,95167.0,95166.0,0.052521]
[1732813691711,0.3608,95167.0,95164.0,0.18855422]
[1732813691911,0.3608,95167.0,95166.0,0.24107522]
[1732813692115,0.3628,95167.0,95166.0,0.25207522]
[1732813692312,0.3628,95167.0,95166.0,0.063521]
[1732813692917,0.3628,95167.0,95166.0,0.059521]
[1732813694522,0.002,95167.0,95166.0,0.062521]
[1732813694928,0.3628,95167.0,95166.0,0.2507901]
[1732813695230,0.41532,95167.0,95166.0,0.01]
[1732813696416,0.41532,95167.0,95166.0,0.062521]
[1732813698526,0.3628,95167.0,95166.0,0.062521]
[1732813699519,0.41532,95167.0,95166.0,0.062521]
[1732813701528,0.41532,95167.0,95166.0,0.01]
[1732813701728,0.57584,95167.0,95166.0,0.062521]
[1732813703736,0.41532,95167.0,95166.0,0.062521]
[1732813704039,0.3628,95167.0,95166.0,0.062521]
[1732813707534,0.002,95167.0,95166.0,0.062521]
[1732813707737,0.002,95167.0,95166.0,0.25090776]
[1732813707929,0.002,95167.0,95166.0,0.062521]
[1732813708934,0.002,95167.0,95166.0,0.31385961]
[1732813709535,0.002,95167.0,95166.0,0.062521]
[1732813718239,0.002,95167.0,95166.0,0.07143967]
[1732813718443,0.002,95167.0,95166.0,0.827229]
[1732813718644,0.002,95167.0,95166.0,0.38627468]
[1732813719043,0.002,95167.0,95166.0,0.07143967]
[1732813719337,0.3608,95187.0,95186.0,0.05251]
[1732813720342,0.3608,95187.0,95186.0,0.3044748]
[1732813720531,0.3608,95187.0,95186.0,0.05251]
[1732813721337,0.01463353,95190.0,95189.0,0.052508]
[1732813721542,0.3608,95197.0,95192.0,0.052507]
[1732813722536,0.052505,95196.0,95192.0,0.052507]
[1732813722740,0.3608,95197.0,95192.0,0.052507]
[1732813722949,0.05262504,95193.0,95192.0,0.053507]
[1732813723144,0.05262504,95193.0,95192.0,0.001]
[1732813723339,0.06756281,95193.0,95192.0,0.001]
[1732813723745,0.22756281,95193.0,95192.0,0.001]
[1732813724445,0.22756281,95193.0,95192.0,0.003]
[1732813725043,0.06756281,95193.0,95192.0,0.003]
[1732813725246,0.01505681,95193.0,95192.0,0.24433019]
[1732813725540,0.01505681,95193.0,95192.0,0.055507]
[1732813725741,0.00011904,95193.0,95192.0,0.055507]
[1732813726062,0.3608,95216.0,95192.0,0.055507]
[1732813726063,0.3608,95216.0,95214.0,0.052494]
[1732813726444,0.3608,95229.0,95214.0,0.052494]
[1732813726646,0.16,95240.0,95214.0,0.052494]
[1732813726647,0.052486,95230.0,95214.0,0.052494]
[1732813726945,0.00013117,95218.0,95214.0,0.22102943]
[1732813727146,0.00013117,95218.0,95217.0,0.30433877]
[1732813727446,0.3608,95231.0,95217.0,0.00853543]
[1732813727648,0.3608,95231.0,95230.0,0.052486]
[1732813727950,0.413279,95242.0,95230.0,0.052486]
[1732813727951,0.052479,95242.0,95241.0,0.05248]
[1732813728656,7.651e-05,95242.0,95241.0,0.05248]
[1732813728843,7.651e-05,95242.0,95230.0,0.33964404]
[1732813728844,0.67587651,95242.0,95230.0,0.00203]
[1732813729044,0.67587651,95242.0,95228.0,0.052486]
[1732813729045,0.052486,95229.0,95228.0,0.052486]
[1732813731347,0.3608,95234.0,95219.0,0.28914804]
[1732813731550,0.3608,95234.0,95227.0,0.052487]
[1732813731856,0.052487,95228.0,95227.0,0.052487]
[1732813732840,0.052487,95228.0,95227.0,0.053487]
[1732813735555,0.47496,95228.0,95218.0,0.00203]
[1732813735742,0.052493,95216.0,95207.0,0.052498]
[1732813736144,0.052493,95216.0,95201.0,0.00203]
[1732813736350,0.052493,95216.0,95202.0,0.00203]
[1732813736753,0.052493,95216.0,95205.0,0.052499]
[1732813737647,0.052493,95216.0,95162.0,0.26108813]
[1732813737648,0.489959,95216.0,95197.0,0.00203]
[1732813737853,0.052506,95194.0,95187.0,0.052509]
[1732813738048,0.052506,95194.0,95187.0,0.00203]
[1732813738254,0.052506,95194.0,95193.0,0.052506]
[1732813738763,0.413303,95198.0,95197.0,0.052504]
[1732813740454,0.413303,95198.0,95197.0,0.054504]
[1732813740455,0.3618,95198.0,95197.0,0.054504]
[1732813741355,0.3628,95198.0,95197.0,0.060504]
[1732813742351,0.002,95198.0,95197.0,0.060504]
[1732813742755,0.002,95198.0,95197.0,0.220024]
[1732813747558,0.002,95198.0,95197.0,0.535144]
[1732813747764,0.052494,95215.0,95214.0,0.052494]
[1732813748068,0.052491,95220.0,95219.0,0.052489]
[1732813749361,0.052494,95215.0,95214.0,0.004]
[1732813749558,0.053494,95215.0,95214.0,0.008]
[1732813750168,0.052494,95215.0,95214.0,0.004]
[1732813750367,0.052494,95215.0,95214.0,0.056494]
[1732813750559,0.052494,95215.0,95214.0,0.052494]
[1732813750763,0.052494,95215.0,95214.0,0.056494]
[1732813750764,0.053494,95215.0,95214.0,0.056494]
[1732813751363,0.001,95215.0,95214.0,0.060494]
[1732813752573,0.052486,95230.0,95222.0,0.05249]
[1732813752758,0.052486,95230.0,95229.0,0.052486]
[1732813754364,0.053486,95230.0,95229.0,0.052486]
[1732813756175,0.001,95230.0,95229.0,0.052486]
[1732813761162,0.001,95230.0,95229.0,0.24069797]
[1732813761965,0.413281,95239.0,95229.0,0.052486]
[1732813762168,0.3608,95239.0,95238.0,0.052481]
[1732813763078,7.651e-05,95242.0,95241.0,0.05248]
[1732813763672,7.651e-05,95242.0,95241.0,0.24068316]
[1732813763868,7.651e-05,95242.0,95241.0,0.05248]
[1732813764077,7.651e-05,95242.0,95241.0,0.30356813]
[1732813764272,0.052472,95255.0,95254.0,0.052472]
[1732813764682,0.01486374,95257.0,95256.0,0.052471]
[1732813764683,0.052471,95257.0,95256.0,0.052471]
[1732813764972,0.3608,95263.0,95259.0,0.052475]
[1732813764973,0.052474,95260.0,95259.0,0.052475]
[1732813765179,0.052474,95260.0,95247.0,0.12715804]
[1732813765180,0.052479,95252.0,95247.0,0.18801131]
[1732813765473,0.3608,95248.0,95241.0,0.005]
[1732813765675,0.3608,95248.0,95236.0,0.18801131]
[1732813765676,0.052491,95230.0,95228.0,0.43869305]